Cogmind - Beta 13 @@@ ROGUE MODE // 2024.05.05 @ 22:03:55 Player: Sandwich Result: Destroyed by as-75473 with Assembled Blade Performance ------------- Evolutions (0) 0 Regions Visited (2) 400 Robots Destroyed (3) 15 Value Destroyed (20) 20 Prototype IDs (0) 0 Alien Tech Used (0) 0 Bonus (0) 0 TOTAL SCORE: 435 Bonus ------- None Cogmind --------- Core Integrity 0/250 Matter 215/300 Energy 5/100 System Corruption 5% Temperature Cool (0) Movement Treading (160) Location -10/Mines Parts ------- > --- POWER (1) -------- (None) > --- PROPULSION (2) --- Light Treads Light Treads > --- UTILITY (2) ------ Targeting Computer Targeting Computer > --- WEAPON (2) ------- EM Pulse Gun Medium Laser > --- INVENTORY (5) ---- Wheel Peak State ------------ > --- POWER ------------ Light Ion Engine > --- PROPULSION ------- Light Treads Wheel > --- UTILITY ---------- Small Storage Unit Seismic Detector > --- WEAPON ----------- Medium Laser Light Assault Rifle > --- INVENTORY -------- Light Treads Wheel Wheel Improved Terrain Scanner Improved Terrain Scanner EM Pulse Gun [Rating: 8] Favorites ----------- Power Light Ion Engine Engine Light Ion Engine Propulsion Wheel Treads Light Treads Wheel Wheel Utility Small Storage Unit Device Seismic Detector Storage Small Storage Unit Processor Targeting Computer Weapon Medium Laser Energy Gun Medium Laser Ballistic Gun Light Assault Rifle Launcher Grenade Launcher Build | -11 -10 -10 ------- Run | Yrd Mat Min Slots Evolved . | . . . Power . | . . . Propulsion . | . . . Utility . | . . . Weapon . | . . . Parts Attached 16 | 7 . 9 Power 1 | 1 . . Engine 1 | 1 . . Core . | . . . Reactor . | . . . Propulsion 6 | 2 . 4 Treads 3 | 1 . 2 Leg . | . . . Wheel 3 | 1 . 2 Hover . | . . . Flight . | . . . Utility 4 | 2 . 2 Device 1 | 1 . . Storage 1 | 1 . . Processor 2 | . . 2 Hackware . | . . . Protection . | . . . Artifact . | . . . Weapon 5 | 2 . 3 Energy Gun 3 | 1 . 2 Energy Cannon . | . . . Ballistic Gun 1 | 1 . . Ballistic Cannon . | . . . Launcher 1 | . . 1 Special Weapon . | . . . Impact Weapon . | . . . Slashing Weapon . | . . . Piercing Weapon . | . . . Special Melee Weapon . | . . . Unidentified Prototypes . | . . . Parts Lost 6 | . . 6 Power 1 | . . 1 Propulsion 2 | . . 2 Utility 2 | . . 2 Weapon 1 | . . 1 Highest Loss Streak 6 | . . 6 To Critical Strikes . | . . . Average Slot Usage (%) 88 | . 100 84 Engine 11 | . 14 10 Treads 12 | . 14 11 Wheel 12 | . 14 11 Device 8 | . 14 7 Storage 13 | . 14 12 Processor 5 | . . 7 Energy Gun 13 | . 14 12 Ballistic Gun 10 | . 14 9 Naked Turns . | . . . Heaviest Build 12 | 12 12 12 Greatest Support 20 | 20 10 10 Greatest Overweight (x) 2 | 1 1 2 Average Overweight (x) . | . 1 . Largest Inventory Capacity 8 | 8 8 8 Average Capacity 7 | 6 8 7 Most Carried 8 | 7 8 8 Average Carried 5 | 3 7 7 Final Capacity 8 | 8 8 5 Final Carried 8 | 7 8 1 Class Distribution -------------------- 100% | Mutant Dominant Class ---------------- Mutant | -10/Materials Mutant | -10/Mines Resources | -11 -10 -10 ----------- Run | Yrd Mat Min Matter Collected 275 | 275 . . Remotely . | . . . Salvage Created 123 | 113 . 10 Parts 11 | 11 . . Haulers Intercepted . | . . . Recyclers Shooed . | . . . Parts Field Recycled . | . . . Retrieved Matter . | . . . Parts Self-Destructed . | . . . Prevented . | . . . Kills | -11 -10 -10 ------- Run | Yrd Mat Min Combat Hostiles Destroyed 2 | . . 2 Guns 1 | . . 1 AOE 1 | . . 1 Classes Destroyed 3 | 2 . 1 Tunneler 2 | 2 . . Recycler 1 | 1 . . Assembled 2 | . . 2 Best Kill Streak 3 | 3 . 2 Combat Bots Only 2 | . . 2 Max Kills in Single Turn 1 | 1 . 1 Gunslinging . | . . . Exploded 1 | . . 1 Melee . | . . . Uniques/NPCs Destroyed . | . . . Combat | -11 -10 -10 -------- Run | Yrd Mat Min Hostile Shots Fired 47 | . . 47 Missed 10 | . . 10 Damage Taken 840 | . . 840 Core 272 | . . 272 Absorbed by Shields . | . . . Core Remaining (%) 100 | 100 . . Volleys Fired 11 | 5 . 6 Largest 2 | 2 . 2 Hottest 80 | 70 . 80 Shots Fired 20 | 10 . 10 Gun 19 | 10 . 9 Cannon . | . . . Launcher 1 | . . 1 Special . | . . . Kinetic 8 | 5 . 3 Thermal 11 | 5 . 6 Explosive 1 | . . 1 Electromagnetic . | . . . Robot Hit Streak 6 | 4 . 6 Robot Miss Streak 2 | 1 . 2 Penetration Max . | . . . Secondary Targets 1 | . . 1 Max Gunslinging Chain 1 | . . 1 Shots Hit Robots 11 | 5 . 6 Core Hits 10 | 4 . 6 Critical Kills . | . . . Critical Parts Destroyed . | . . . Critical Strikes 2 | . . 2 Burn 2 | . . 2 Melee Attacks . | . . . Impact . | . . . Slashing . | . . . Piercing . | . . . Sneak Attacks . | . . . Combat Hostiles . | . . . Follow-up Attacks . | . . . Damage Inflicted 223 | 56 . 167 Guns 112 | 56 . 56 Cannons . | . . . Explosions 108 | . . 108 Melee . | . . . Ramming 3 | . . 3 Kinetic 37 | 19 . 18 Thermal 75 | 37 . 38 Explosive 108 | . . 108 Electromagnetic . | . . . Impact . | . . . Slashing . | . . . Piercing . | . . . Highest Corruption 5 | . . 5 Average Corruption 5 | . . 5 Corruption Purged . | . . . Corruption Blocked . | . . . Effects 3 | . . 3 Matter Fused 1 | . . 1 Parts Rejected 1 | . . 1 Data Loss (minor) 1 | . . 1 Overload Shots . | . . . Overflow Damage 15 | . . 15 Projectiles . | . . . Explosions 15 | . . 15 Melee . | . . . Knockbacks . | . . . Impact . | . . . Kinetic . | . . . Secondary . | . . . Self-Inflicted Damage 41 | . . 41 Shots 1 | . . 1 Rammed 1 | . . 1 Targets Rammed 1 | . . 1 Kicked . | . . . Crushed . | . . . Highest Temperature 60 | 60 . 43 Average Temperature 26 | 29 . 23 Received Heat Transfer 80 | . . 80 Siege Activations . | . . . Robots Corrupted . | . . . Combat Hostiles . | . . . Parts Fried . | . . . Impact Corruptions . | . . . Robots Melted . | . . . Combat Hostiles . | . . . Parts Melted . | . . . Heat Transferred 370 | 111 . 259 Parts Sabotaged . | . . . Parts Stolen . | . . . Parts Stripped . | . . . Power Chain Reactions . | . . . Alert | -11 -10 -10 ------- Run | Yrd Mat Min Peak Influence 37 | 15 37 14 Initial 14 | . 9 14 Average 8 | 6 14 8 Maximum Alert Level . | . . . Low Security (%) 100 | 100 100 100 Level 1 . | . . . Level 2 . | . . . Level 3 . | . . . Level 4 . | . . . Level 5 . | . . . High Security . | . . . Max Security . | . . . Squads Dispatched 1 | . 1 . Investigation . | . . . Extermination . | . . . Reinforcement 1 | . 1 . Assault . | . . . Garrison . | . . . Intercept . | . . . Searches Triggered . | . . . Construction Impeded . | . . . Haulers Reinforced . | . . . Active Scanning Responses . | . . . Cargo Convoy Interrupts . | . . . Stealth | -11 -10 -10 --------- Run | Yrd Mat Min Distress Signals 1 | . . 1 Communications Jammed . | . . . Distress Signals . | . . . Times Spotted 17 | . 2 15 Peak Tracking Total 15 | . 1 15 Tactical Retreats 2 | . . 2 Traps | -11 -10 -10 ------- Run | Yrd Mat Min Traps Triggered . | . . . Indirectly . | . . . Trap Hack Attempts . | . . . Triggered . | . . . Disarmed . | . . . Reprogrammed . | . . . Reused . | . . . Traps Extracted . | . . . Installed . | . . . Triggered . | . . . Machines | -11 -10 -10 ---------- Run | Yrd Mat Min Machines Disabled . | . . . Max in Single Turn . | . . . Machines Repaired . | . . . Machines Dismantled . | . . . Machines Sabotaged . | . . . Overloaded Fab Kills . | . . . Hacking | -11 -10 -10 --------- Run | Yrd Mat Min Machines Accessed 1 | . 1 . Terminals 1 | . 1 . Fabricators . | . . . Repair Stations . | . . . Recycling Units . | . . . Scanalyzers . | . . . Garrison Access . | . . . Total Hacks 3 | . 3 . Successful 2 | . 2 . Failed 1 | . 1 . Catastrophic . | . . . Database Lockouts . | . . . Manual 2 | . 2 . Terminals 3 | . 3 . Fabricators . | . . . Repair Stations . | . . . Recycling Units . | . . . Scanalyzers . | . . . Garrison Access . | . . . Terminal Hacks 1 | . 1 . Branch Access Points 1 | . 1 . Fabricator Hacks . | . . . Repair Station Hacks . | . . . Recycling Unit Hacks . | . . . Scanalyzer . | . . . Garrison Access Hacks . | . . . Unauthorized Hacks 1 | . 1 . Terminals 1 | . 1 . Botnet 1 | . 1 . Fabricators . | . . . Repair Stations . | . . . Recycling Units . | . . . Scanalyzers . | . . . Garrison Access . | . . . Data Cores Recovered . | . . . Used . | . . . Hacking Detections 1 | . 1 . Full Trace Events . | . . . Feedback Events . | . . . Feedback Blocked . | . . . Robot Schematics Acquired . | . . . Robots Built . | . . . Authchips . | . . . Time . | . . . Total Robot Build Rating . | . . . Part Schematics Acquired . | . . . Parts Built . | . . . Authchips . | . . . Time . | . . . Total Part Build Rating . | . . . Parts Repaired . | . . . Time . | . . . Parts Recycled . | . . . Recycled Matter . | . . . Retrieved Matter . | . . . Retrieved Components . | . . . Parts Scanalyzed . | . . . Part Schematics Acquired . | . . . Parts Damaged . | . . . Bothacking | -11 -10 -10 ------------ Run | Yrd Mat Min Used RIF Installer . | . . . Robots Hacked . | . . . Non-combat . | . . . Combat . | . . . Robot Hacks Applied . | . . . Relay Couplers Released . | . . . Fabnet Peak Effective % . | . . . Robots Rewired . | . . . Allies Hacked . | . . . Hacks Repelled . | . . . Allies | -11 -10 -10 -------- Run | Yrd Mat Min Total Allies . | . . . Largest Group . | . . . Highest-Rated Group . | . . . Highest-Rated Ally . | . . . Total Orders . | . . . Ally Attacks . | . . . Total Damage . | . . . Kills . | . . . Allies Corrupted . | . . . Allies Melted . | . . . Intel | -11 -10 -10 ------- Run | Yrd Mat Min Robot Analysis Total . | . . . Derelict Logs Recovered . | . . . Drone Launches . | . . . Drone Recoveries . | . . . Exploration | -11 -10 -10 ------------- Run | Yrd Mat Min Turns Passed 240 | 82 37 121 Spaces Moved 179 | 57 30 92 Core 9 | 5 . 4 Treads 1 | 1 . . Legs . | . . . Wheels 169 | 51 30 88 Hover . | . . . Flight . | . . . Fastest Speed 50 | 50 95 80 Average Speed 91 | 87 95 93 Slowest Speed 160 | 160 95 150 Overloaded Moves . | . . . Propulsion Burnouts . | . . . Robots Hopped . | . . . Cave-ins Triggered . | . . . Exploration Rate (%) 15 | 4 13 28 Regions Visited 2 Branch Regions 1 Pre-discovered Areas . | . . . Known Exits Taken 1 | . 1 . Unknown Exits Taken 1 | 1 . . Scrap Searched 1 | . . 1 Spaces Dug . | . . . Terrain Destroyed 11 | . . 11 Melee . | . . . Projectile . | . . . AOE 11 | . . 11 Terrain Rammed . | . . . Walls Destroyed . | . . . Machines Disabled . | . . . Actions | -11 -10 -10 --------- Run | Yrd Mat Min Total 233 | 76 38 119 Wait 13 | 1 8 4 Move 177 | 56 29 92 Hop . | . . . Pick Up 12 | 7 1 4 Fast Attach 7 | 7 . . Attach 7 | . . 7 Detach . | . . . Swap 2 | . . 2 Drop 3 | . . 3 Fire 11 | 5 . 6 Melee . | . . . Ram 1 | . . 1 Kick . | . . . Crush . | . . . Escape Stasis . | . . . Rewire . | . . . Trap . | . . . Miscellaneous . | . . . Route ------- -11/Scrapyard -10/Materials (discovered 2 exits: *Min x2) -10/Mines History --------- Turn | Location | Event 23 | -11/Scrapyard | Discovered new exit (range 16) 83 | -11/Scrapyard | Entered Materials 100 | -10/Materials | Discovered new exit (range 16) 110 | -10/Materials | Identified exit to Mines 120 | -10/Materials | Entered Mines 165 | -10/Mines | Assembled infested the area 170 | -10/Mines | Assisted by a Guerilla fighting off Assembled 195 | -10/Mines | YI-UF0 nonchalantly dropped a Grenade Launcher on the ground 215 | -10/Mines | Core integrity fell below 50% 223 | -10/Mines | Core integrity fell below 20% 241 | -10/Mines | Destroyed by as-75473 with Assembled Blade Last Messages --------------- 00202_ as-71405 destroyed. 00202_ Wheel destroyed. 00202_ as-06773 destroyed. 00202_ as-19193 suffers critical hit (Burn). 00202_ as-19193 destroyed. 00202_ Switching to secondary target: as-58511. 00203_ YI-UF0: "Whaaaaaaaa!" 00206_ as-20497 suffers critical hit (Burn). 00206_ Destroyed Asb. Hover Unit. 00206_ as-86792 destroyed. 00209_ The unstable cave ceiling collapses. 00209_ Grenade Launcher severed. 00210_ Lgt. Ion Engine destroyed. 00213_ Med. Laser destroyed. 00215_ System corrupted: Component data lost. 00216_ as-58511 destroyed. 00217_ The unstable cave ceiling collapses. 00233_ Wheel destroyed. 00233_ Sml. Storage Unit destroyed. 00237_ System corrupted: Matter fused (-9). Map ----- +----------------------------------------------------+ | ????????# #????????????????? | | ?????????# ! ##???????????????? | | ?????????# ] ! ##??????????????? | | ?????????## ! ####???????????? | | ??????????## #???????????? | | ???????????# ### #???????????? | | ??????????## ##?# ############# | | ???????####[ ##??# % % | | ???????# ##### * != | | ???????# ###%######## | | ???????###* ### ###????? | | ?????????# ########## # #????? | | ?????????#####??????# ###### | | ????????????????????# | | ????????????????????# % ####### | | ????????????????????# #????? | | ??????????????????### ] #????? | | ??????????????????# #????? | | ??????????????????# # #????? | | ?????????????????## ##### ##????? | | ?????########???## ##???##?????? | | ?????# #???# #??????????? | | ?????# """ #???# #??????????? | | ?????# """ #???# #??????????? | | ?????# """ #??## ##?????????? | | ?????# @ #?## ##????????? | | ?????####a##### #????????? | | ????????#a### #????????? | | ????????# a ##????????? | | ????????#### ###?????????? | | ???????????## ##???????????? | | ????????????########????????????? | | ????????????????????????????????? | | | | | | | | | | | | | | | | | | | | | | | | | | | | | | | | | | | +----------------------------------------------------+ Best States ------------- Heat Dissipation 25 Energy Generation 10 Energy Capacity 125 Matter Stores 300 Matter Capacity 300 Sight Range 16 Terrain Scan Density 10 Evasion (%) 44 Targeting Accuracy 10 Recoil Reduction 2 Item Schematics ----------------- None Robot Schematics ------------------ None Fabricated ------------ Nothing Alien Tech Used ----------------- None Achievements -------------- None Challenges ------------ None Game ------ Seed TerrainMultinovaTreads Manual? 0 Play Time 00:07:02 Cumulative 216.3 hours Start 2024.05.05 @ 21:59:31 End 2024.05.05 @ 22:03:55 Sessions 1 Manual Loads 0 Difficulty Rogue Special Mode None Game No. 279 Rogue 235 Adventurer 4 Explorer 40 Win Type - Total 9 Types 7/1/0/1/0/0/0/0/0 Lore% 51 Gallery% 75 Achievement% 60 Wizard Run 0 Options --------- Layout 0 ASCII 0 Keyboard 0 Movement Mouse Keybinds 0 Fullscreen 2 Font 24/Smallcaps Map View 76x50 Zoom Use 0% Tactical HUD 1 Map Filters NONE Filters NONE Steam 1 RUN: 987688ba-f34b-4d8d-ad40-2eb5f6609199